bitfinex/quotes_ETHUSD_20250909
["timestamp","ask_amount","ask_price","bid_price","bid_amount"]
[1757431031805,0.00020001,4295.2,4295.1,12.6538487]
[1757431032281,0.73510001,4295.2,4295.1,12.5209487]
[1757431032482,0.73510001,4295.2,4295.1,11.09523449]
[1757431032683,1.24710001,4295.2,4295.1,11.09523449]
[1757431033624,0.73510001,4295.2,4295.1,11.09523449]
[1757431034034,0.73510001,4295.2,4295.1,11.09723449]
[1757431035308,0.00020001,4295.2,4295.1,11.09723449]
[1757431035508,0.73510001,4295.2,4295.1,5.769]
[1757431035726,0.73510001,4295.2,4295.1,4.11623449]
[1757431035885,0.73510001,4295.2,4295.1,8.09723449]
[1757431036588,0.73430001,4295.2,4295.1,11.09723449]
[1757431036819,0.73430001,4295.2,4295.1,12.43999203]
[1757431037223,0.73430001,4295.2,4295.1,11.21323449]
[1757431037528,1.24630001,4295.2,4295.1,11.21323449]
[1757431038435,1.24630001,4295.2,4295.1,1.904]
[1757431038729,1.24630001,4295.2,4295.1,3.983]
[1757431039897,1.24630001,4295.2,4295.1,0.002]
[1757431040101,1.24630001,4295.2,4295.1,3.983]
[1757431040694,0.7349,4295.2,4295.1,3.983]
[1757431041029,1.2469,4295.2,4295.1,3.983]
[1757431041192,0.001,4295.4,4295.2,2.32818029]
[1757431041386,0.001,4295.4,4295.3,6.30912609]
[1757431041828,0.2883,4295.4,4295.3,6.25912609]
[1757431042003,0.001,4295.4,4295.3,7.11806169]
[1757431042191,0.001,4295.4,4295.3,4.7899356]
[1757431042192,1.2479,4295.4,4295.3,4.7899356]
[1757431042392,1.2479,4295.4,4295.3,6.25912609]
[1757431042592,1.2479,4295.4,4295.3,6.20912609]
[1757431042987,1.2479,4295.4,4295.3,3.981]
[1757431044526,1.2479,4295.4,4295.2,2.32817084]
[1757431044730,0.2883,4295.4,4295.3,3.981]
[1757431045089,0.2883,4295.4,4295.1,0.002]
[1757431045090,0.55002815,4295.4,4295.1,0.002]
[1757431045289,0.2883,4295.4,4295.3,3.981]
[1757431045725,1.2479,4295.4,4295.3,3.981]
[1757431045939,1.2479,4295.4,4295.1,0.002]
[1757431046097,2.3281655,4295.3,4295.1,0.002]
[1757431046301,1.46541006,4295.4,4295.1,0.002]
[1757431046496,1.2469,4295.2,4295.1,0.002]
[1757431046930,3.57508029,4295.2,4295.1,0.002]
[1757431047316,1.2469,4295.2,4295.1,0.002]
[1757431047617,3.57508029,4295.2,4295.1,0.002]
[1757431047817,3.79259035,4295.2,4295.1,0.002]
[1757431048127,4.68050314,4295.2,4295.1,0.002]
[1757431048315,2.35232285,4295.2,4295.1,0.002]
[1757431048518,4.46432183,4295.2,4295.1,0.002]
[1757431048828,4.68050314,4295.2,4295.1,0.002]
[1757431049313,4.46432183,4295.2,4295.1,0.002]
[1757431049514,4.46425333,4295.2,4295.1,0.002]
[1757431049702,0.7349,4295.2,4295.1,0.002]
[1757431050433,3.57508029,4295.2,4295.1,0.002]
[1757431050632,3.79251207,4295.2,4295.1,0.002]
[1757431050833,4.0086874,4295.2,4295.1,0.002]
[1757431052699,1.68050711,4295.2,4295.1,0.002]
[1757431052894,1.2469,4295.2,4295.1,0.002]
[1757431053112,0.2873,4295.2,4295.1,0.002]
[1757431053311,0.001,4295.4,4295.1,0.002]
[1757431053520,0.001,4295.2,4295.1,0.002]
[1757431053967,3.78441207,4295.2,4295.1,0.002]
[1757431054270,4.39741868,4295.2,4295.1,0.002]
[1757431054564,4.61359401,4295.2,4295.1,0.002]
[1757431056367,5.53528847,4295.2,4295.1,0.002]
[1757431056715,5.53529331,4295.2,4295.1,0.002]
[1757431057303,8.53529331,4295.2,4295.1,0.002]
[1757431057840,9.20659668,4295.2,4295.1,0.002]
[1757431058290,8.70875491,4295.2,4295.1,0.002]
[1757431060778,6.12023449,4295.1,4294.6,0.002]
[1757431060943,3.12045134,4294.7,4294.6,0.002]
[1757431061145,5.32866823,4294.3,4294.2,1e-08]
[1757431061453,12.45197464,4294.3,4294.2,1e-08]
[1757431061685,12.74737464,4294.3,4294.2,1e-08]
[1757431061846,13.68977464,4294.3,4294.2,1e-08]
[1757431062050,14.30278125,4294.3,4294.2,1e-08]
[1757431062693,14.30198125,4294.3,4294.2,1e-08]
[1757431064093,14.08454947,4294.3,4294.2,1e-08]
[1757431064274,14.30036601,4294.3,4294.2,1e-08]
[1757431065289,3.12099364,4293.7,4293.6,0.002]
[1757431065451,10.63091324,4293.7,4293.6,0.002]
[1757431065647,12.21358417,4293.7,4293.6,0.002]
[1757431067499,12.21358417,4293.7,4292.8,0.027]
[1757431067500,0.792,4293.0,4292.8,0.027]
[1757431067640,11.90600759,4292.9,4292.8,0.027]
[1757431067845,11.90600759,4292.9,4292.3,0.002]
[1757431067846,2.329699,4292.4,4292.3,0.002]
[1757431068087,10.40744374,4292.4,4292.3,0.002]
[1757431068332,12.4206638,4292.4,4292.3,0.002]
[1757431069040,6.12180755,4292.2,4292.1,1e-08]
[1757431069207,10.53517194,4292.2,4292.1,1e-08]
[1757431069531,12.38597855,4292.2,4292.1,1e-08]
[1757431070955,12.38697855,4292.2,4292.1,1e-08]
[1757431071968,7.46257855,4292.2,4292.1,1e-08]
[1757431072257,6.51014977,4292.2,4292.1,1e-08]
[1757431072459,9.52862779,4292.2,4292.1,0.13390001]
[1757431072623,10.32062779,4292.2,4292.1,0.13390001]
[1757431073023,10.32062779,4292.2,4292.1,1e-08]
[1757431073425,12.31426047,4292.2,4292.1,1e-08]
[1757431073924,11.88106047,4292.2,4292.1,1e-08]
[1757431074172,11.04922779,4292.2,4292.1,1e-08]
[1757431075058,11.55842779,4292.2,4292.1,1e-08]
[1757431075423,11.77270526,4292.2,4292.1,1e-08]
[1757431075638,11.95112585,4292.2,4292.1,1e-08]
[1757431076458,11.44192585,4292.2,4292.1,1e-08]
[1757431076866,11.95112585,4292.2,4292.1,1e-08]
[1757431077521,11.95105679,4292.2,4292.1,1e-08]
[1757431077724,11.95102163,4292.2,4292.1,1e-08]
[1757431079025,11.95025396,4292.2,4292.1,1e-08]
[1757431079764,11.44105396,4292.2,4292.1,1e-08]
[1757431079975,7.45905396,4292.2,4292.1,1e-08]
[1757431080144,11.44105396,4292.2,4292.1,1e-08]
[1757431080350,10.71245396,4292.2,4292.1,1e-08]
[1757431080688,11.44105396,4292.2,4292.1,1e-08]
[1757431081451,6.73045396,4292.2,4292.1,0.13390001]
[1757431081651,10.71245396,4292.2,4292.1,0.13390001]
[1757431081832,12.01666926,4292.2,4292.1,0.13390001]
[1757431082153,13.32826926,4292.2,4292.1,1e-08]
[1757431082492,13.45695628,4292.2,4292.1,1e-08]
[1757431082637,13.32826926,4292.2,4292.1,1e-08]
[1757431083158,13.4569501,4292.2,4292.1,1e-08]
[1757431083567,6.12218758,4291.5,4291.4,0.002]
[1757431083766,12.59110448,4291.5,4291.4,0.002]
[1757431083939,13.90270448,4291.5,4291.4,0.002]
[1757431085240,0.792,4291.3,4290.8,0.027]
[1757431085481,3.12273068,4290.5,4290.4,0.002]
[1757431085651,9.43258937,4290.5,4290.4,0.002]
[1757431085850,11.29100235,4290.5,4290.4,0.002]
[1757431086177,14.29100235,4290.5,4290.4,0.002]
[1757431087631,14.41980178,4290.5,4290.4,0.002]
[1757431087826,14.96110178,4290.5,4290.4,0.002]
[1757431088315,14.41980178,4290.5,4290.4,0.002]
[1757431088726,14.42115453,4290.5,4290.4,0.002]
[1757431089014,14.42035453,4290.5,4290.4,0.002]
[1757431089718,13.95735453,4290.5,4290.4,0.002]
[1757431090017,13.22260868,4290.5,4290.4,0.002]
[1757431090220,12.45230868,4290.5,4290.4,0.002]
[1757431091117,5.47030868,4290.5,4290.4,0.1359]
[1757431091301,8.53223923,4290.5,4290.4,0.6314]
[1757431092193,8.53223923,4290.5,4290.4,0.7151]
[1757431092194,6.20150855,4290.5,4290.4,0.7151]
[1757431092381,6.20205871,4290.5,4290.4,0.7151]
[1757431092577,8.53273441,4290.5,4290.4,0.6314]
[1757431092998,6.20200373,4290.5,4290.4,0.6314]
[1757431093303,8.53273441,4290.5,4290.4,0.6314]
[1757431094203,8.53273441,4290.5,4290.4,0.1359]
[1757431094407,9.32473441,4290.5,4290.4,0.002]
[1757431094638,11.26057058,4290.5,4290.4,0.002]
[1757431094948,11.93105741,4290.5,4290.4,0.002]
[1757431095245,11.38975741,4290.5,4290.4,0.002]
[1757431095478,10.61945741,4290.5,4290.4,0.002]
[1757431095920,11.93105741,4290.5,4290.4,0.002]
[1757431096327,10.92675741,4290.5,4290.4,0.002]
[1757431096515,11.38975741,4290.5,4290.4,0.002]
[1757431097424,2.33089366,4290.2,4290.0,0.012]
[1757431097616,2.33089366,4290.2,4290.1,1e-08]
[1757431097617,10.55347733,4290.2,4290.1,1e-08]
[1757431097948,12.47447243,4290.2,4290.1,1e-08]
[1757431098538,6.23894799,4290.1,4290.0,1e-08]
[1757431098860,9.00376293,4290.1,4290.0,1e-08]
[1757431099071,9.77406293,4290.1,4290.0,1e-08]
[1757431099639,9.55897264,4290.1,4290.0,1e-08]
[1757431099849,9.7744118,4290.1,4290.0,1e-08]
[1757431100341,3.123111,4289.8,4289.1,0.04]
[1757431100544,10.5374636,4289.8,4289.1,0.04]
[1757431100768,12.47503864,4289.8,4289.1,0.04]
[1757431100979,3.12343709,4289.2,4289.1,1e-08]
[1757431101140,9.34336963,4289.2,4289.1,1e-08]
[1757431101491,12.4299009,4289.2,4289.1,1e-08]
[1757431101796,12.4299009,4289.2,4287.1,0.13330132]
[1757431101797,0.792,4289.0,4287.5,0.4955]
[1757431101940,0.792,4289.0,4287.1,0.1237]
[1757431101941,2.33198078,4288.2,4287.9,0.4955]
[1757431102277,8.31989422,4288.2,4287.9,0.4955]
[1757431102480,8.53533338,4288.2,4288.1,0.1739]
[1757431103450,9.73470359,4288.2,4288.1,0.04]
[1757431103678,12.73470359,4288.2,4288.1,0.04]
[1757431103891,13.50500359,4288.2,4288.1,0.04]
[1757431104252,14.17512902,4288.2,4288.1,0.04]
[1757431105912,13.63382902,4288.2,4288.1,0.04]
[1757431106577,14.17512902,4288.2,4288.1,0.04]
[1757431107877,13.63382902,4288.2,4288.1,0.04]
[1757431109526,14.17475463,4288.2,4288.1,0.04]
[1757431111228,13.14508374,4287.9,4287.8,1e-08]
[1757431111586,13.63888426,4287.9,4287.8,1e-08]
[1757431113416,6.12452472,4287.2,4287.1,1e-08]
[1757431113612,12.45832836,4287.2,4287.1,1e-08]
[1757431113834,14.09489857,4287.2,4287.1,1e-08]
[1757431115052,14.09409857,4287.2,4287.1,1e-08]
[1757431115750,13.87865941,4287.2,4287.1,1e-08]
[1757431115958,14.26536568,4287.2,4287.1,1e-08]
[1757431116358,14.26536568,4287.2,4286.8,0.025]
[1757431116359,6.12468795,4286.9,4286.8,1e-08]
[1757431116520,10.66728481,4286.9,4286.8,1e-08]
[1757431116720,11.89648481,4286.9,4286.8,1e-08]
[1757431118668,11.89611269,4286.9,4286.8,1e-08]
[1757431120055,2.33306891,4286.2,4286.1,1e-08]
[1757431120256,12.52197817,4286.2,4286.1,1e-08]
[1757431120565,13.26537817,4286.2,4286.1,1e-08]
[1757431121444,3.12523222,4285.9,4285.8,1e-08]
[1757431121646,10.34135121,4285.9,4285.8,1e-08]
[1757431121842,12.71950744,4285.9,4285.8,1e-08]
[1757431122133,12.23370744,4285.9,4285.8,1e-08]
[1757431122663,11.49030744,4285.9,4285.8,1e-08]
[1757431122868,6.53277127,4285.9,4285.8,0.62180001]
[1757431123162,2.54977127,4285.9,4285.8,0.62180001]
[1757431123470,3.983,4285.9,4285.8,0.70550001]
[1757431123669,4.12310983,4286.2,4285.8,0.70550001]
[1757431123832,4.12310983,4286.2,4285.8,0.13390001]
[1757431123833,3.983,4286.1,4285.8,0.13390001]
[1757431124034,3.12523222,4285.9,4285.8,0.13390001]
[1757431124231,7.10823222,4285.9,4285.8,1e-08]
[1757431124428,7.10823222,4285.9,4285.8,0.13390001]
[1757431124632,10.10823222,4285.9,4285.8,1e-08]
[1757431124865,10.40903222,4285.9,4285.8,1e-08]
[1757431125746,10.40903222,4285.9,4285.8,0.13390001]
[1757431125747,10.10823222,4285.9,4285.8,0.13390001]
[1757431127471,6.12523222,4285.9,4285.8,0.13390001]
[1757431127772,10.10823222,4285.9,4285.8,0.62180001]
[1757431128831,10.10823222,4285.9,4285.8,0.13390001]
[1757431129037,10.40903222,4285.9,4285.8,1e-08]
[1757431129245,10.53801809,4285.9,4285.8,1e-08]
[1757431129672,10.23721809,4285.9,4285.8,1e-08]
[1757431130265,10.45232985,4285.9,4285.8,1e-08]
[1757431130836,10.75312985,4285.9,4285.8,1e-08]
[1757431131042,11.19572985,4285.9,4285.8,1e-08]
[1757431131242,12.17720122,4285.9,4285.8,1e-08]
[1757431133346,12.17720122,4285.9,4285.1,1e-08]
[1757431133347,6.12561336,4285.2,4285.1,1e-08]
[1757431133549,12.24371099,4285.2,4285.1,1e-08]
[1757431133750,13.18198236,4285.2,4285.1,1e-08]
[1757431134156,13.48278236,4285.2,4285.1,1e-08]
[1757431134381,13.18198236,4285.2,4285.1,1e-08]
[1757431134578,12.73938236,4285.2,4285.1,1e-08]
[1757431136307,8.75638236,4285.2,4285.1,1e-08]
[1757431136493,12.73938236,4285.2,4285.1,0.13390001]
[1757431136661,14.14917463,4285.2,4285.1,1e-08]
[1757431136867,14.59177463,4285.2,4285.1,1e-08]
[1757431137266,13.84837463,4285.2,4285.1,1e-08]
[1757431137668,14.14917463,4285.2,4285.1,1e-08]
[1757431138003,14.59177463,4285.2,4285.1,1e-08]
[1757431138568,13.84837463,4285.2,4285.1,0.13390001]
[1757431139304,3.12577675,4284.9,4284.7,0.4879]
[1757431139612,10.10877675,4284.9,4284.4,0.4879]
[1757431139826,10.94854575,4284.9,4284.4,0.4879]
[1757431140042,11.71325986,4284.9,4284.1,0.04]
[1757431140189,11.41245986,4284.9,4284.1,0.5279]
[1757431140397,11.41245986,4284.9,4284.4,0.4879]
[1757431141046,11.59111443,4284.9,4284.4,0.4879]
[1757431141210,12.81951443,4284.9,4284.1,0.04]
[1757431141396,13.64134761,4284.9,4284.1,0.04]
[1757431141926,12.81951443,4284.9,4284.1,0.04]
[1757431142106,3.792,4284.8,4283.1,0.04]
[1757431142450,0.792,4283.8,4283.1,0.04]
[1757431142735,6.12670302,4283.2,4283.1,0.04]
[1757431142891,10.45380065,4283.2,4283.1,0.04]
[1757431143421,10.45380065,4283.2,4282.8,1e-08]
[1757431143422,3.792,4282.9,4282.8,1e-08]
[1757431143634,12.24496419,4282.9,4282.8,1e-08]
[1757431143834,3.12713917,4282.4,4282.3,2.01791461]
[1757431144163,7.22613917,4282.4,4282.3,2.54301461]
[1757431144310,7.11013917,4282.4,4282.3,2.01791461]
[1757431144511,7.45557282,4282.4,4282.3,2.01791461]
[1757431144822,3.47257282,4282.4,4282.3,2.01791461]
[1757431145024,6.31813917,4282.4,4282.3,2.54301461]
[1757431145208,6.5340352,4282.4,4282.3,2.54301461]
[1757431146013,6.53411633,4282.4,4282.3,2.01791461]
[1757431146209,6.99803044,4282.4,4282.3,2.01791461]
[1757431146424,6.53411633,4282.4,4282.3,2.54301461]
[1757431146623,4.19897716,4282.4,4282.3,2.54301461]
[1757431147052,6.53411633,4282.4,4282.3,2.54301461]
[1757431147252,4.19897716,4282.4,4282.3,2.54301461]
[1757431147480,2.55111633,4282.4,4282.3,2.54301461]
[1757431147679,6.31813917,4282.4,4282.3,2.54301461]
[1757431147978,4.19897716,4282.4,4282.3,2.54301461]
[1757431148362,3.983,4282.4,4282.3,2.54301461]
[1757431148676,6.31813917,4282.4,4282.3,2.54301461]
[1757431149035,3.983,4282.4,4282.3,2.54301461]
[1757431149984,6.31813917,4282.4,4282.3,2.54301461]
[1757431150342,6.31813917,4282.4,4282.3,2.01791461]
[1757431150853,3.983,4282.4,4282.3,2.01791461]
[1757431151076,6.31813917,4282.4,4282.3,2.54301461]
[1757431151374,6.31813917,4282.4,4282.3,2.01791461]
[1757431151776,6.31813917,4282.4,4282.3,2.54301461]
[1757431151989,3.983,4282.4,4282.3,2.54301461]
[1757431152189,0.025,4283.8,4282.3,2.80131607]
[1757431152486,0.025,4283.8,4282.6,2.33503012]
[1757431152657,0.025,4283.8,4282.5,3.0]
[1757431152980,0.025,4283.8,4282.3,2.27621607]
[1757431152981,1.967,4283.8,4283.0,2.33479839]
[1757431153185,1.967,4283.8,4283.1,0.5251]
[1757431153680,0.025,4283.8,4283.5,2.33453814]
[1757431153979,0.025,4283.8,4283.6,0.5251]
[1757431154342,0.025,4283.8,4283.3,0.5251]
[1757431154894,0.025,4283.8,4282.8,1.792]
[1757431154895,2.33469633,4283.3,4282.8,1.792]
[1757431155100,2.45067011,4283.3,4282.6,0.116]
[1757431155259,0.116,4283.3,4282.6,0.116]
[1757431155588,0.116,4283.3,4282.7,0.5251]
[1757431155748,0.025,4283.8,4282.8,0.116]
[1757431155951,0.025,4283.8,4283.1,0.116]
[1757431155952,0.141,4283.8,4283.1,0.116]
[1757431156353,2.4754178,4283.8,4283.1,0.116]
[1757431156591,2.4754178,4283.8,4283.2,0.5251]
[1757431156790,2.4754178,4283.8,4283.1,0.116]
[1757431156791,2.33461524,4283.4,4283.1,0.116]
[1757431157090,0.116,4283.1,4282.3,2.54301461]
[1757431157477,2.33483232,4283.0,4282.3,2.54301461]
[1757431157678,3.983,4283.4,4282.6,2.3349856]
[1757431157995,6.31759979,4283.4,4282.7,0.5251]
[1757431158296,2.33465215,4283.3,4282.7,0.5251]
[1757431158501,1.42376522,4283.2,4282.3,2.01791461]
[1757431158653,2.33483464,4283.0,4282.3,2.01791461]
[1757431158858,3.994,4282.9,4282.3,2.01791461]
[1757431159057,2.33513917,4282.4,4282.3,2.01791461]
[1757431159663,7.88693917,4282.4,4282.3,2.01991461]
[1757431159896,9.04413484,4282.4,4282.3,2.01991461]
[1757431160198,4.21005451,4282.4,4282.3,2.01991461]
[1757431160360,0.21605451,4282.4,4282.3,2.01991461]
[1757431160560,2.33493689,4282.8,4282.3,2.54501461]
[1757431160787,4.21305451,4283.0,4282.3,2.54501461]
[1757431161007,0.2174337,4282.9,4282.3,2.54501461]
[1757431161175,0.2174337,4282.8,4282.3,2.54501461]
[1757431161498,0.2174337,4282.7,4282.4,1.01712336]
[1757431161670,0.2174337,4282.6,4282.5,0.5251]
[1757431161994,2.55235196,4282.9,4282.5,0.5251]
[1757431162173,3.997,4283.0,4282.3,2.01991461]
[1757431162174,0.2174337,4282.8,4282.3,2.01991461]
[1757431162401,0.2174337,4282.7,4282.3,2.01991461]
[1757431162600,0.2174337,4282.6,4282.4,0.5251]
[1757431162837,2.55256318,4282.5,4282.3,2.01991461]
[1757431163049,0.2174337,4282.4,4282.3,2.01991461]
[1757431163409,0.2174337,4282.6,4282.3,2.22590607]
[1757431163620,0.2174337,4282.5,4282.3,2.22590607]
[1757431163925,0.2174337,4282.4,4282.3,2.01991461]
[1757431164120,0.2174337,4282.8,4282.3,4.88015889]
[1757431164417,0.2174337,4282.7,4282.4,0.5251]
[1757431164618,0.2174337,4283.0,4282.5,0.5251]
[1757431164929,0.43381401,4283.3,4282.6,2.86012614]
[1757431165103,0.2174337,4283.2,4282.7,0.5251]
[1757431165428,0.2174337,4283.1,4282.8,0.5251]
[1757431165631,0.2174337,4283.4,4282.9,0.5251]
[1757431165944,2.33480652,4283.1,4282.5,1.01312576]
[1757431166234,2.33497577,4282.7,4282.3,2.01991461]
[1757431166397,0.4564,4282.6,4282.3,2.01991461]
[1757431166592,0.2174337,4282.5,4282.3,2.01991461]
[1757431166793,2.79144379,4282.6,4282.3,2.01991461]
[1757431166794,2.55257287,4282.4,4282.3,2.01991461]
[1757431167194,0.2174337,4282.4,4282.3,2.01991461]
[1757431167448,0.2166337,4282.4,4282.3,2.01991461]
[1757431167624,0.2166337,4282.4,4282.3,2.75100607]
[1757431167796,0.21640228,4282.9,4282.3,2.75100607]
[1757431168131,0.116,4283.0,4282.3,2.75100607]
[1757431169019,2.33496695,4282.8,4282.3,2.22590607]
[1757431169210,2.33496695,4282.8,4282.3,2.01991461]
[1757431169641,2.79139426,4282.7,4282.3,2.01991461]
[1757431169799,2.33492107,4282.8,4282.3,2.01991461]
[1757431170000,2.66749061,4283.0,4282.3,2.01991461]
[1757431170201,0.792,4282.9,4282.3,2.01991461]
[1757431170510,0.116,4282.6,4282.3,2.01991461]
[1757431170717,0.116,4282.7,4282.3,2.01991461]
[1757431171239,2.45098043,4282.7,4282.3,2.01991461]
[1757431171599,2.33503679,4282.6,4282.3,2.01991461]
[1757431171800,0.5532,4282.7,4282.3,2.01991461]
[1757431172002,2.3351376,4282.5,4282.3,2.01991461]
[1757431172314,0.116,4282.7,4282.3,2.01991461]
[1757431173435,2.45098873,4282.7,4282.3,2.01991461]
[1757431173736,0.116,4282.7,4282.3,2.01991461]
[1757431174413,2.45098181,4282.7,4282.3,2.01991461]
[1757431174809,0.116,4282.7,4282.3,2.01991461]
[1757431176099,2.45097686,4282.7,4282.3,2.01991461]
[1757431176343,0.116,4282.7,4282.3,2.01991461]
[1757431177022,2.45097908,4282.7,4282.3,2.01991461]
[1757431177341,2.33509829,4282.5,4282.3,2.01991461]
[1757431177839,0.33277786,4282.7,4282.3,2.01991461]
[1757431177840,3.07633917,4282.4,4282.3,2.01991461]
[1757431178403,4.97435777,4282.4,4282.3,2.01991461]
[1757431178712,10.0970036,4282.4,4282.3,2.01991461]
[1757431178912,10.0970036,4282.4,4282.3,1.54491461]
[1757431179311,10.31515225,4282.4,4282.3,1.54491461]
[1757431182641,4.69251359,4282.4,4282.3,1.54491461]
[1757431182820,8.68351359,4282.4,4282.3,1.54491461]
[1757431183025,8.98751359,4282.4,4282.3,1.54491461]
[1757431183361,8.98738811,4282.4,4282.3,1.54491461]
[1757431183718,9.42458811,4282.4,4282.3,1.54491461]
[1757431184324,11.1155571,4282.4,4282.3,1.54491461]
[1757431184860,14.9075571,4282.4,4282.3,1.54491461]
[1757431185906,15.40775844,4282.4,4282.3,1.54491461]
[1757431186246,14.90769292,4282.4,4282.3,1.54491461]
[1757431187532,14.39269292,4282.4,4282.3,1.54491461]
[1757431188525,0.56538476,4282.4,4282.3,1.85591461]
[1757431188768,0.4352934,4283.2,4282.3,2.76911461]
[1757431188966,0.21814865,4283.5,4282.4,0.93655139]
[1757431189122,0.001,4283.6,4282.4,0.93655139]
[1757431189123,0.21914865,4283.6,4283.4,0.311]
[1757431189330,2.33453951,4283.5,4283.0,0.4884]
[1757431189524,0.001,4283.6,4283.0,0.4884]
[1757431190028,0.001,4283.6,4283.5,0.311]
[1757431190966,0.001,4283.6,4283.0,0.4884]
[1757431190967,2.33548501,4283.6,4283.0,0.4884]
[1757431191151,0.001,4283.6,4283.0,0.4884]
[1757431191460,2.33458347,4283.5,4283.0,0.4884]
[1757431191778,0.01657994,4283.4,4282.5,0.4884]
[1757431191983,6.33552541,4283.6,4282.5,2.82346863]
[1757431192140,2.33459401,4283.4,4282.5,2.82344083]
[1757431192325,2.33465962,4283.3,4282.5,1.38043439]
[1757431192553,2.33465962,4283.3,4282.5,2.82347379]
[1757431192768,0.01657994,4283.2,4282.5,0.4884]
[1757431193248,2.33475753,4283.1,4282.4,4.12712889]
[1757431193472,2.35143635,4283.0,4282.3,1.54491461]
[1757431193648,2.33498528,4282.7,4282.3,1.54491461]
[1757431193852,0.01577994,4282.8,4282.3,1.54491461]
[1757431194054,2.33503012,4282.6,4282.3,1.54491461]
[1757431194304,0.4372,4282.7,4282.3,1.54491461]
[1757431194305,0.87216457,4282.7,4282.3,1.54491461]
[1757431194508,2.33513917,4282.4,4282.3,1.54491461]
[1757431195585,2.77009223,4282.5,4282.3,1.54491461]
[1757431195899,2.33503012,4282.6,4282.3,1.54491461]
[1757431196304,2.33508464,4282.5,4282.3,1.54491461]
[1757431196505,0.4349982,4282.5,4282.3,1.54491461]
[1757431196687,2.33503012,4282.6,4282.3,1.54491461]
[1757431197006,2.33513917,4282.4,4282.3,1.54491461]
[1757431197405,4.20313205,4282.4,4282.3,1.54491461]
[1757431197709,4.11637412,4282.4,4282.3,1.54491461]
[1757431197889,4.11637412,4282.4,4282.3,1.85591461]
[1757431197890,4.4329982,4282.4,4282.3,1.85591461]
[1757431198059,0.4349982,4282.4,4282.3,1.85591461]
[1757431198260,0.21775613,4282.7,4282.3,1.85591461]
[1757431198458,0.4349982,4282.8,4282.4,0.4884]
[1757431198685,0.21775613,4282.9,4282.4,0.4884]
[1757431198956,0.4349982,4283.0,4282.7,0.311]
[1757431199192,0.43508724,4283.1,4282.7,0.7994]
[1757431199389,0.43508724,4283.1,4282.9,2.33486656]
[1757431199390,0.21775613,4283.1,4282.9,2.33486656]
[1757431199589,0.001,4283.3,4283.0,1.2242]
[1757431199754,0.001,4283.3,4283.0,0.7994]
[1757431200169,0.001,4283.3,4283.0,0.311]
[1757431200406,0.001,4283.3,4283.2,2.33470302]
[1757431200610,0.001,4283.3,4283.2,0.3558903]
[1757431202080,2.33569561,4283.3,4282.5,2.33506812]
[1757431202392,2.33471624,4283.2,4282.4,2.33512472]
[1757431202713,0.001,4283.3,4282.3,3.80491461]
[1757431203215,2.33565006,4283.3,4282.6,2.33498855]
[1757431203414,2.33565006,4283.3,4282.5,2.33507568]
[1757431203415,2.33470608,4283.2,4282.5,2.33507568]
[1757431203613,0.001,4283.3,4282.3,3.80491461]
[1757431203816,2.3348033,4283.1,4282.3,3.80491461]
[1757431204015,2.33476406,4283.1,4282.3,3.80491461]
[1757431204314,0.001,4283.3,4282.4,2.33512506]
[1757431204517,0.001,4283.3,4282.3,6.14009863]
[1757431204819,0.001,4283.3,4283.2,2.64140302]
[1757431205022,0.24263184,4284.8,4283.4,3.0]
[1757431205321,0.025,4284.8,4284.1,2.33421255]
[1757431205479,0.025,4284.8,4284.1,11.45191255]
[1757431205679,0.025,4284.8,4284.1,12.34471255]
[1757431205980,0.025,4284.8,4284.1,13.81261281]
[1757431206617,0.025,4284.8,4284.1,3.56660026]
[1757431209825,0.001,4284.2,4284.1,0.3067]
[1757431210183,0.001,4284.2,4284.0,4.023]
[1757431210421,0.001,4284.2,4284.0,4.139]
[1757431210797,0.001,4284.2,4284.1,0.3067]
[1757431211110,0.001,4284.2,4284.1,0.90247]
[1757431212642,0.001,4284.2,4284.1,3.70468255]
[1757431212789,0.001,4284.2,4284.1,7.15282467]
[1757431212992,0.001,4284.2,4284.1,7.12948255]
[1757431213699,0.001,4284.2,4284.1,11.14948255]
[1757431213895,0.001,4284.2,4284.1,3.58868255]
[1757431214095,0.001,4284.2,4284.1,4.01348255]
[1757431214321,0.001,4284.2,4284.1,7.61068255]
[1757431214520,0.001,4284.2,4284.1,7.78548255]
[1757431214719,0.001,4284.2,4284.1,10.78548255]
[1757431215305,0.001,4284.2,4284.1,10.36468255]
[1757431215500,0.001,4284.2,4284.1,9.89668255]
[1757431216037,0.001,4284.2,4284.1,5.87068255]
[1757431216449,0.001,4284.2,4284.1,3.0]
[1757431216599,0.001,4284.2,4284.1,4.025]
[1757431216801,0.001,4284.2,4284.0,2.33426478]
[1757431217141,0.001,4284.2,4284.1,4.025]
[1757431217515,0.001,4284.2,4284.1,6.35921255]
[1757431217759,0.001,4284.2,4284.1,4.025]
[1757431218625,0.001,4284.2,4284.1,6.35921255]
[1757431219028,0.001,4284.2,4284.0,2.3342585]
[1757431219232,0.001,4284.2,4284.1,4.022]
[1757431219414,0.001,4284.2,4284.1,6.35621255]
[1757431219819,0.0002,4284.2,4284.1,11.14776378]
[1757431220108,0.0002,4284.2,4284.1,0.86905123]
[1757431220441,0.0002,4284.2,4284.1,4.023]
[1757431220643,0.0002,4284.2,4284.1,6.35721255]
[1757431221145,0.0002,4284.2,4284.1,6.63691255]
[1757431221508,0.0002,4284.2,4284.1,6.35721255]
[1757431221703,0.0002,4284.2,4284.1,6.63691255]
[1757431221941,0.0002,4284.2,4284.1,4.023]
[1757431222145,0.0002,4284.2,4284.1,6.35721255]
[1757431222663,0.0002,4284.2,4284.1,3.4830712]
[1757431222831,0.0002,4284.2,4284.1,6.35621255]
[1757431223359,0.0002,4284.2,4284.1,6.63591255]
[1757431223560,0.0002,4284.2,4284.1,7.10391255]
[1757431223729,0.0002,4284.2,4284.1,10.27871255]
[1757431224064,0.21692815,4286.4,4284.2,36.246]
[1757431224264,0.24192815,4286.8,4284.4,3.792]
[1757431224427,0.025,4286.8,4285.8,2.61258666]
[1757431224635,0.025,4286.8,4285.8,12.29799364]
[1757431224947,0.025,4286.8,4286.7,2.33279679]